[Event "4NCL 2019-20"]
[Site "Daventry"]
[Date "2020.02.08"]
[Round "5"]
[White "Evans, Craig"]
[Black "Wall, Tim P"]
[Result "0-1"]
[ECO "D06"]
[WhiteElo "2003"]
[BlackElo "2201"]
[Annotator "ChessBase"]
[PlyCount "98"]
[EventDate "2020.01.11"]
[EventCountry "ENG"]
[SourceTitle "playchess.com"]
[Source "ChessBase"]
[SourceQuality "1"]
[TimeControl "40/6000:3000+30"]

1. Nf3 {[%emt 0:00:00]} d5 {[%emt 0:00:07]} 2. d4 {[%emt 0:00:00]} Bf5 {[%emt 0:00:52]} 3. c4 {[%emt 0:00:21]} e6 {[%emt 0:00:07]} 4. g3 {[%emt 0:02:58]} Nc6 {[%emt 0:00:52]} 5. Qa4 {[%emt 0:04:22]} Qd7 {[%emt 0:07:51]} 6. Bg2 {[%emt 0:04:15]} Nf6 {[%emt 0:02:37]} 7. O-O {[%emt 0:01:13]} Be7 {[%emt 0:03:23]} 8. Rd1 {[%emt 0:08:56]} Ne4 {[%emt 0:06:13]} 9. Be3 {[%emt 0:11:38]} O-O {[%emt 0:01:14]} 10. Ne1 {[%emt 0:09:58]} Bg6 {[%emt 0:06:43]} 11. f3 {[%emt 0:01:51]} Nd6 {[%emt 0:03:36]} 12. cxd5 {[%emt 0:21:59]} exd5 {[%emt 0:00:00]} 13. Bf2 {[%emt 0:03:45]} Nc4 {[%emt 0:43:47]} 14. Qb3 {[%emt 0:04:47]} a5 {[%emt 0:00:00]} 15. e4 {[%emt 0:03:00]} a4 {[%emt 0:03:19]} 16. Qc3 {[%emt 0:01:27]} a3 {[%emt 0:02:34]} 17. bxa3 {[%emt 0:06:34]} Nxa3 {[%emt 0:00:00]} 18. Nxa3 {[%emt 0:00:00]} Rxa3 {[%emt 0:00:51]} 19. Qb2 {[%emt 0:00:00]} Bh5 {[%emt 0:04:40]} 20. Nc2 {[%emt 0:00:00]} Ra5 {[%emt 0:01:42]} 21. g4 {[%emt 0:05:36]} Bg6 {[%emt 0:00:00]} 22. Be1 {[%emt 0:02:58]} Ra6 {[%emt 0:02:53]} 23. exd5 {[%emt 0:00:28]} Bxc2 {[%emt 0:00:45]} 24. Qxc2 {[%emt 0:00:04]} Qxd5 {[%emt 0:00:03]} 25. f4 {[%emt 0:00:52]} Qd7 {[%emt 0:01:07]} 26. d5 {[%emt 0:00:10]} Nb4 {[%emt 0:00:47]} 27. Qb3 {[%emt 0:01:38]} Rb6 {[%emt 0:00:00]} 28. Bf2 {[%emt 0:00:09]} Rg6 {[%emt 0:00:33]} 29. d6 {[%emt 0:00:19]} Qxg4 {[%emt 0:00:00]} 30. Bg3 {[%emt 0:00:00]} Bxd6 {[%emt 0:00:00]} 31. Rxd6 {[%emt 0:00:00]} Rxd6 {[%emt 0:01:14]} 32. Qxb4 {[%emt 0:00:00]} Rd1+ {[%emt 0:00:00]} 33. Rxd1 {[%emt 0:00:00]} Qxd1+ {[%emt 0:00:00]} 34. Bf1 {[%emt 0:00:00]} b6 {[%emt 0:00:00]} 35. Qc4 {[%emt 0:00:00]} c5 {[%emt 0:00:00]} 36. Qb3 {[%emt 0:00:00]} Qd4+ {[%emt 0:00:00]} 37. Kg2 {[%emt 0:00:00]} Qe4+ {[%emt 0:00:12]} 38. Kg1 {[%emt 0:00:00]} Qg6 {[%emt 0:00:30]} 39. Bd3 {[%emt 0:00:00]} Qd6 {[%emt 0:00:06]} 40. Qc4 {[%emt 0:00:00]} Rd8 {[%emt 0:00:40]} 41. Be2 {[%emt 0:07:04]} Qd2 {[%emt 0:05:08]} 42. Kf1 {[%emt 0:07:34]} Re8 {[%emt 0:05:27]} 43. Be1 {[%emt 0:03:08]} Qe3 {[%emt 0:02:23]} 44. Bf2 {[%emt 0:02:04]} Qe4 {[%emt 0:04:55]} 45. Qa6 {[%emt 0:13:17]} h6 {[%emt 0:03:43]} 46. Bg3 {[%emt 0:09:03]} g6 {[%emt 0:03:42]} 47. Qb5 {[%emt 0:01:59]} h5 {[%emt 0:01:03]} 48. Kf2 {[%emt 0:06:46]} h4 {[%emt 0:09:58]} 49. Bxh4 {[%emt 0:02:07]} Qxf4+ {[%emt 0:01:39]} 0-1

[Event "4NCL 2019-20"]
[Site "Daventry"]
[Date "2020.02.08"]
[Round "5"]
[White "York-Weaving, Anna"]
[Black "Sygnowski, Tomasz"]
[Result "0-1"]
[ECO "C06"]
[WhiteElo "1739"]
[BlackElo "2185"]
[Annotator "ChessBase"]
[PlyCount "72"]
[EventDate "2020.01.11"]
[EventCountry "ENG"]
[SourceTitle "playchess.com"]
[Source "ChessBase"]
[SourceQuality "1"]
[TimeControl "40/6000:3000+30"]

1. e4 {[%emt 0:11:32]} e6 {[%emt 0:00:00]} 2. d4 {[%emt 0:00:00]} d5 {[%emt 0:00:00]} 3. Nd2 {[%emt 0:00:00]} Nf6 {[%emt 0:00:27]} 4. e5 {[%emt 0:00:00]} Nfd7 {[%emt 0:00:07]} 5. Bd3 {[%emt 0:00:00]} c5 {[%emt 0:00:00]} 6. c3 {[%emt 0:00:00]} Nc6 {[%emt 0:00:00]} 7. Ne2 {[%emt 0:00:00]} Qb6 {[%emt 0:00:00]} 8. Nf3 {[%emt 0:00:00]} cxd4 {[%emt 0:00:00]} 9. cxd4 {[%emt 0:00:00]} f6 {[%emt 0:00:00]} 10. exf6 {[%emt 0:00:00]} Nxf6 {[%emt 0:00:00]} 11. O-O {[%emt 0:00:00]} Bd6 {[%emt 0:00:00]} 12. b3 {[%emt 0:00:32]} e5 {[%emt 0:04:06]} 13. dxe5 Nxe5 {[%emt 0:00:00]} 14. Nxe5 {[%emt 0:15:07]} Bxe5 {[%emt 0:00:00]} 15. Rb1 {[%emt 0:01:17]} O-O {[%emt 0:00:00]} 16. h3 {[%emt 0:06:03]} Qa5 {[%emt 0:07:30]} 17. Bb2 {[%emt 0:05:05]} Re8 {[%emt 0:07:15]} 18. a4 {[%emt 0:33:50]} Bd7 {[%emt 0:01:14]} 19. Nd4 Rac8 {[%emt 0:06:11]} 20. f4 {[%emt 0:07:49]} Bd6 {[%emt 0:10:32]} 21. Nf5 {[%emt 0:03:05]} Qb6+ {[%emt 0:02:35]} 22. Kh1 {[%emt 0:04:28]} Bb4 {[%emt 0:04:58]} 23. Bd4 {[%emt 0:04:19]} Bc5 {[%emt 0:03:00]} 24. Be5 {[%emt 0:00:00]} Bxf5 {[%emt 0:03:28]} 25. Bxf5 {[%emt 0:00:05]} Rcd8 {[%emt 0:01:05]} 26. Qd3 {[%emt 0:01:33]} h6 {[%emt 0:05:49]} 27. Rf3 {[%emt 0:02:11]} Rf8 28. Rc1 {[%emt 0:00:00]} Bd6 29. Bxf6 {[%emt 0:00:00]} Rxf6 30. Qxd5+ {[%emt 0:00:00]} Kh8 31. Rd1 {[%emt 0:00:00]} Be7 32. Qe4 {[%emt 0:00:00]} Rxd1+ 33. Kh2 {[%emt 0:00:00]} Qg1+ 34. Kg3 {[%emt 0:00:00]} Qe1+ 35. Qxe1 {[%emt 0:00:00]} Rxe1 36. Bd3 {[%emt 0:00:00]} Bd6 0-1

[Event "4NCL 2019-20"]
[Site "Daventry"]
[Date "2020.02.08"]
[Round "5"]
[White "Bridgeman, Niamh"]
[Black "Jaufarally, Nadia"]
[Result "1/2-1/2"]
[ECO "D03"]
[WhiteElo "1665"]
[BlackElo "1928"]
[Annotator "NA"]
[PlyCount "94"]
[EventDate "2020.01.11"]
[EventCountry "ENG"]
[SourceTitle "playchess.com"]
[Source "ChessBase"]
[SourceQuality "1"]
[TimeControl "40/6000:3000+30"]

1. d4 {[%emt 0:00:00]} Nf6 {[%emt 0:00:00]} 2. Nf3 {[%emt 0:00:00]} g6 {[%emt 0:00:00]} 3. Bg5 {[%emt 0:00:00]} Bg7 {[%emt 0:00:00]} 4. Nbd2 {[%emt 0:00:00]} d5 {[%emt 0:01:00]} 5. e3 {[%emt 0:00:00]} O-O {[%emt 0:05:59]} 6. Bd3 {[%emt 0:00:19]} Nbd7 {[%emt 0:05:03]} 7. O-O {[%emt 0:03:26]} b6 {[%emt 0:28:35]} 8. c3 {[%emt 0:00:44]} Bb7 {[%emt 0:00:48]} 9. Qb1 {[%emt 0:00:46]} c5 {[%emt 0:15:28]} 10. a4 {[%emt 0:00:51]} Qe8 {[%emt 0:08:54]} 11. b4 {[%emt 0:11:10]} e5 {[%emt 0:09:14]} 12. Bb5 {[%emt 0:20:38]} Ne4 {[%emt 0:15:15]} 13. Nxe4 {[%emt 0:13:43]} dxe4 {[%emt 0:00:00]} 14. Nxe5 {[%emt 0:14:44]} Bxe5 {[%emt 0:00:26]} 15. dxe5 {[%emt 0:16:58]} Qxe5 {[%emt 0:01:27]} 16. Bf4 {[%emt 0:00:00]} Qe6 {[%emt 0:01:03]} 17. Bxd7 {[%emt 0:00:01]} Qxd7 {[%emt 0:00:00]} 18. Rd1 {[%emt 0:00:09]} Qc8 {[%emt 0:05:34]} 19. bxc5 {[%emt 0:04:52]} bxc5 {[%emt 0:00:00]} 20. Bd6 {[%emt 0:00:03]} Rd8 {[%emt 0:00:00]} 21. Qb5 {[%emt 0:00:17]} c4 {[%emt 0:00:00]} 22. Rab1 {[%emt 0:00:28]} Ba6 {[%emt 0:00:33]} 23. Qd5 {[%emt 0:00:33]} Qf5 {[%emt 0:00:04]} 24. Qc6 {[%emt 0:01:36]} Qa5 {[%emt 0:00:00]} 25. Bc7 {[%emt 0:01:02]} Rxd1+ {[%emt 0:00:00]} 26. Rxd1 {[%emt 0:00:00]} Rc8 {[%emt 0:00:00]} 27. Qxg6+ {[%emt 0:00:30]} hxg6 {[%emt 0:00:00]} 28. Bxa5 {[%emt 0:00:00]} Rb8 {[%emt 0:00:00]} 29. Rd8+ {[%emt 0:00:36]} Rxd8 {[%emt 0:00:00]} 30. Bxd8 {[%emt 0:00:00]} f5 {[%emt 0:00:01]} 31. Bf6 {[%emt 0:00:00]} Bb7 {[%emt 0:00:00]} 32. a5 {[%emt 0:00:45]} a6 {[%emt 0:00:01]} 33. h4 {[%emt 0:01:12]} Kf7 {[%emt 0:00:00]} 34. Bd4 {[%emt 0:00:01]} Bc6 {[%emt 0:00:00]} 35. Kh2 {[%emt 0:00:00]} Ke6 {[%emt 0:00:00]} 36. Kg3 {[%emt 0:00:40]} Be8 {[%emt 0:00:00]} 37. Kf4 {[%emt 0:00:08]} Ba4 {[%emt 0:00:00]} 38. f3 {[%emt 0:00:32]} Bc2 {[%emt 0:00:00]} 39. fxe4 {[%emt 0:01:39]} Bxe4 {[%emt 0:00:00]} 40. g4 {[%emt 0:00:30]} Bd3 {[%emt 0:00:00]} 41. h5 {[%emt 0:51:01]} fxg4 {[%emt 0:11:55]} 42. h6 {[%emt 0:00:00]} g5+ {[%emt 0:02:09]} 43. Kxg4 {[%emt 0:00:00]} Be4 {[%emt 0:02:36]} 44. Kxg5 {[%emt 0:00:00]} Bh7 {[%emt 0:00:25]} 45. Kf4 {[%emt 0:00:00]} Kd5 {[%emt 0:00:48]} 46. Kg5 {[%emt 0:00:00]} Ke6 {[%emt 0:00:42]} 47. Bb6 {[%emt 0:00:00]} Bd3 {[%emt 0:01:09]} 1/2-1/2

[Event "4NCL 2019-20"]
[Site "Daventry"]
[Date "2020.02.09"]
[Round "6"]
[White "Gormally, Daniel W"]
[Black "Kanyamarala, Tarun"]
[Result "0-1"]
[ECO "E20"]
[WhiteElo "2508"]
[BlackElo "2349"]
[Annotator "ChessBase"]
[PlyCount "56"]
[EventDate "2020.01.11"]
[EventCountry "ENG"]
[SourceTitle "playchess.com"]
[Source "ChessBase"]
[SourceQuality "1"]
[TimeControl "40/6000:3000+30"]

1. d4 {[%emt 0:00:00]} Nf6 {[%emt 0:00:00]} 2. Nf3 {[%emt 0:00:00]} e6 {[%emt 0:00:00]} 3. c4 {[%emt 0:00:00]} d5 {[%emt 0:00:00]} 4. Nc3 {[%emt 0:00:00]} Bb4 {[%emt 0:00:22]} 5. g3 {[%emt 0:00:00]} dxc4 {[%emt 0:01:06]} 6. Bg2 {[%emt 0:00:00]} O-O {[%emt 0:00:00]} 7. O-O {[%emt 0:00:00]} Nc6 {[%emt 0:00:00]} 8. a3 {[%emt 0:00:16]} Bxc3 {[%emt 0:08:43]} 9. bxc3 {[%emt 0:00:00]} Rb8 {[%emt 0:00:24]} 10. Qc2 {[%emt 0:05:44]} b6 {[%emt 0:16:57]} 11. e4 {[%emt 0:00:00]} h6 {[%emt 0:00:00]} 12. Nd2 {[%emt 0:06:37]} e5 {[%emt 0:14:08]} 13. d5 {[%emt 0:04:47]} Na5 {[%emt 0:00:23]} 14. a4 {[%emt 0:01:28]} c6 {[%emt 0:06:53]} 15. Ba3 {[%emt 0:01:19]} Re8 {[%emt 0:00:00]} 16. Rad1 {[%emt 0:00:22]} cxd5 {[%emt 0:09:50]} 17. exd5 {[%emt 0:00:00]} Bg4 {[%emt 0:00:31]} 18. f3 {[%emt 0:03:25]} Bh5 {[%emt 0:00:00]} 19. Ne4 {[%emt 0:00:00]} Nxe4 {[%emt 0:05:00]} 20. fxe4 {[%emt 0:00:00]} Bxd1 {[%emt 0:02:17]} 21. Qxd1 {[%emt 0:00:00]} Nb7 {[%emt 0:00:25]} 22. Qh5 {[%emt 0:03:00]} Qc7 {[%emt 0:03:32]} 23. g4 {[%emt 0:09:02]} Rbd8 {[%emt 0:02:48]} 24. h4 {[%emt 0:09:54]} Nc5 {[%emt 0:03:33]} 25. g5 {[%emt 0:01:39]} Rd6 {[%emt 0:00:00]} 26. Bc1 {[%emt 0:03:03]} Nd3 {[%emt 0:07:22]} 27. Be3 {[%emt 0:00:00]} Nf4 {[%emt 0:01:36]} 28. Qf3 {[%emt 0:00:00]} Rg6 {[%emt 0:00:16]} 0-1

[Event "4NCL 2019-20"]
[Site "Daventry"]
[Date "2020.02.09"]
[Round "6"]
[White "Cyborowski, Lukasz"]
[Black "Fitzsimons, David"]
[Result "1/2-1/2"]
[ECO "D75"]
[WhiteElo "2505"]
[BlackElo "2328"]
[Annotator "ChessBase"]
[PlyCount "83"]
[EventDate "2020.01.11"]
[EventCountry "ENG"]
[SourceTitle "playchess.com"]
[Source "ChessBase"]
[SourceQuality "1"]
[TimeControl "40/6000:3000+30"]

1. Nf3 {[%emt 0:00:00]} Nf6 {[%emt 0:00:02]} 2. c4 {[%emt 0:00:00]} g6 {[%emt 0:00:00]} 3. g3 {[%emt 0:00:58]} Bg7 {[%emt 0:00:00]} 4. Bg2 {[%emt 0:00:00]} O-O {[%emt 0:00:00]} 5. O-O {[%emt 0:00:00]} c5 {[%emt 0:00:00]} 6. d4 {[%emt 0:01:50]} cxd4 {[%emt 0:00:00]} 7. Nxd4 {[%emt 0:00:00]} d5 {[%emt 0:01:57]} 8. cxd5 {[%emt 0:06:43]} Nxd5 {[%emt 0:00:00]} 9. Nc3 {[%emt 0:01:02]} Nxc3 {[%emt 0:11:19]} 10. bxc3 {[%emt 0:00:06]} Nc6 {[%emt 0:02:10]} 11. Nxc6 {[%emt 0:35:07]} bxc6 {[%emt 0:00:08]} 12. Bxc6 {[%emt 0:05:15]} Bh3 {[%emt 0:02:54]} 13. Qxd8 {[%emt 0:02:17]} Raxd8 {[%emt 0:00:00]} 14. Bg2 {[%emt 0:00:00]} Bxg2 {[%emt 0:00:00]} 15. Kxg2 {[%emt 0:00:00]} Bxc3 {[%emt 0:00:00]} 16. Rb1 {[%emt 0:00:00]} Rd7 {[%emt 0:03:42]} 17. Rb3 {[%emt 0:01:42]} Rc8 {[%emt 0:03:23]} 18. Be3 {[%emt 0:01:07]} Bf6 {[%emt 0:01:25]} 19. Ra3 {[%emt 0:02:35]} Rc2 {[%emt 0:00:18]} 20. Kf3 {[%emt 0:02:57]} h5 {[%emt 0:05:27]} 21. Rb1 {[%emt 0:10:03]} Rc3 {[%emt 0:04:54]} 22. Rb8+ {[%emt 0:10:13]} Kg7 {[%emt 0:00:00]} 23. Rxc3 {[%emt 0:00:58]} Bxc3 {[%emt 0:00:00]} 24. Ra8 {[%emt 0:00:00]} a5 {[%emt 0:00:00]} 25. Ra7 {[%emt 0:00:00]} Rxa7 {[%emt 0:17:14]} 26. Bxa7 {[%emt 0:00:00]} f5 {[%emt 0:02:56]} 27. Ke3 {[%emt 0:00:26]} e5 {[%emt 0:00:28]} 28. Kd3 {[%emt 0:00:28]} Be1 {[%emt 0:00:00]} 29. a4 {[%emt 0:05:10]} Kf6 {[%emt 0:00:01]} 30. Bb6 {[%emt 0:02:58]} g5 {[%emt 0:04:10]} 31. Kc4 {[%emt 0:03:47]} f4 {[%emt 0:00:40]} 32. e4 {[%emt 0:02:53]} fxe3 {[%emt 0:01:05]} 33. Bxe3 {[%emt 0:00:07]} Kf5 {[%emt 0:00:00]} 34. Kd5 {[%emt 0:00:00]} e4 {[%emt 0:00:12]} 35. h3 {[%emt 0:00:00]} g4 {[%emt 0:00:02]} 36. hxg4+ {[%emt 0:00:15]} hxg4 {[%emt 0:00:00]} 37. Bd4 {[%emt 0:00:00]} Bb4 {[%emt 0:00:00]} 38. Bb6 {[%emt 0:00:06]} Be1 {[%emt 0:00:00]} 39. Bc5 {[%emt 0:00:01]} Bd2 {[%emt 0:00:00]} 40. Be3 {[%emt 0:00:00]} Be1 {[%emt 0:00:00]} 41. Bb6 {[%emt 0:10:51]} Bb4 {[%emt 0:01:27]} 42. Be3 {[%emt 0:03:03] Ke5+ Kxe4+} 1/2-1/2

[Event "4NCL 2019-20"]
[Site "Daventry"]
[Date "2020.02.09"]
[Round "6"]
[White "Arkell, Keith C"]
[Black "Bremner, Adam"]
[Result "1/2-1/2"]
[ECO "A16"]
[WhiteElo "2460"]
[BlackElo "2148"]
[Annotator "ChessBase"]
[PlyCount "101"]
[EventDate "2020.01.11"]
[EventCountry "ENG"]
[SourceTitle "playchess.com"]
[Source "ChessBase"]
[SourceQuality "1"]
[TimeControl "40/6000:3000+30"]

1. c4 {[%emt 0:37:55]} Nf6 {[%emt 0:00:09]} 2. Nc3 {[%emt 0:00:32]} d5 {[%emt 0:00:19]} 3. cxd5 {[%emt 0:00:06]} Nxd5 {[%emt 0:00:04]} 4. g3 {[%emt 0:01:08]} g6 {[%emt 0:00:15]} 5. Bg2 {[%emt 0:00:04]} Nb6 {[%emt 0:00:11]} 6. d3 {[%emt 0:00:28]} Bg7 {[%emt 0:00:15]} 7. Be3 {[%emt 0:00:05]} e5 {[%emt 0:02:39]} 8. Qd2 {[%emt 0:00:11]} h5 {[%emt 0:06:48]} 9. h3 {[%emt 0:04:01]} Nc6 {[%emt 0:00:58]} 10. Bxc6+ {[%emt 0:00:09]} bxc6 {[%emt 0:00:08]} 11. Nf3 {[%emt 0:06:22]} Nd5 {[%emt 0:05:09]} 12. d4 {[%emt 0:02:06]} exd4 {[%emt 0:03:21]} 13. Bxd4 {[%emt 0:00:12]} O-O {[%emt 0:00:55]} 14. Bxg7 {[%emt 0:00:06]} Kxg7 {[%emt 0:00:15]} 15. Qd4+ {[%emt 0:04:27]} f6 {[%emt 0:10:07]} 16. O-O-O {[%emt 0:07:58]} Qe7 {[%emt 0:06:13]} 17. g4 {[%emt 0:04:33]} Nxc3 {[%emt 0:03:21]} 18. Qxc3 {[%emt 0:00:09]} hxg4 {[%emt 0:03:35]} 19. hxg4 {[%emt 0:00:06]} Bxg4 {[%emt 0:01:25]} 20. Ng5 {[%emt 0:17:34]} Rh8 {[%emt 0:08:23]} 21. f3 {[%emt 0:04:51]} Bf5 {[%emt 0:02:54]} 22. e4 {[%emt 0:01:01]} Be6 {[%emt 0:00:04]} 23. Kb1 {[%emt 0:07:21]} Rxh1 {[%emt 0:02:01]} 24. Rxh1 {[%emt 0:00:10]} Rh8 {[%emt 0:00:07]} 25. Nxe6+ {[%emt 0:01:34]} Qxe6 {[%emt 0:00:12]} 26. Rc1 {[%emt 0:00:07]} Rh3 {[%emt 0:07:43]} 27. Qe3 {[%emt 0:07:28]} a5 {[%emt 0:03:00]} 28. a4 {[%emt 0:01:22]} g5 {[%emt 0:01:04]} 29. Rg1 {[%emt 0:03:37]} Qe5 {[%emt 0:01:10]} 30. Rg2 {[%emt 0:04:29]} Rh1+ {[%emt 0:02:54]} 31. Kc2 {[%emt 0:02:05]} Rh2 {[%emt 0:00:48]} 32. Rxh2 {[%emt 0:00:10]} Qxh2+ {[%emt 0:00:05]} 33. Kb3 {[%emt 0:00:56]} Qd6 {[%emt 0:00:19]} 34. Kc2 {[%emt 0:02:24]} Qh2+ {[%emt 0:02:26]} 35. Kc3 {[%emt 0:01:07]} Qd6 {[%emt 0:00:56]} 36. Qd4 {[%emt 0:00:22]} Qf4 {[%emt 0:01:26]} 37. Qd3 {[%emt 0:02:26]} Qe5+ {[%emt 0:00:08]} 38. Kc2 {[%emt 0:00:56]} Qc5+ {[%emt 0:01:11]} 39. Qc3 {[%emt 0:00:52]} Qf2+ {[%emt 0:00:10]} 40. Kb1 {[%emt 0:00:32]} Qg1+ {[%emt 0:08:29]} 41. Ka2 {[%emt 0:00:19]} Qb6 {[%emt 0:00:22]} 42. Qd3 {[%emt 0:08:22]} Qc5 {[%emt 0:02:22]} 43. Qd7+ {[%emt 0:00:39]} Kh6 {[%emt 0:01:55]} 44. Qe6 {[%emt 0:00:39]} Kg7 {[%emt 0:00:31]} 45. Qd7+ {[%emt 0:05:18]} Kh6 {[%emt 0:00:06]} 46. Qd3 {[%emt 0:05:15]} Kg7 {[%emt 0:00:13]} 47. Qb3 {[%emt 0:00:37]} Qd4 {[%emt 0:00:59]} 48. Qc2 {[%emt 0:00:35]} c5 {[%emt 0:00:38]} 49. b3 {[%emt 0:04:08]} Qe3 {[%emt 0:01:54]} 50. Qd1 {[%emt 0:00:36]} Qc3 {[%emt 0:00:35]} 51. Qd7+ {[%emt 0:02:59]} 1/2-1/2

[Event "4NCL 2019-20"]
[Site "Daventry"]
[Date "2020.02.09"]
[Round "6"]
[White "Bulmaga, Irina"]
[Black "O'Donnell, Conor"]
[Result "1/2-1/2"]
[ECO "B12"]
[WhiteElo "2453"]
[BlackElo "2307"]
[Annotator "ChessBase"]
[PlyCount "63"]
[EventDate "2020.01.11"]
[EventCountry "ENG"]
[SourceTitle "playchess.com"]
[Source "ChessBase"]
[SourceQuality "1"]
[TimeControl "40/6000:3000+30"]

1. e4 {[%emt 0:00:00]} c6 {[%emt 0:05:07]} 2. d4 {[%emt 0:00:00]} d5 {[%emt 0:00:00]} 3. e5 {[%emt 0:00:00]} c5 {[%emt 0:00:00]} 4. dxc5 {[%emt 0:00:00]} e6 {[%emt 0:00:00]} 5. a3 {[%emt 0:00:00]} Bxc5 {[%emt 0:00:00]} 6. b4 {[%emt 0:00:00]} Be7 {[%emt 0:00:00]} 7. Nf3 {[%emt 0:00:00]} Nd7 {[%emt 0:03:25]} 8. Bb2 {[%emt 0:00:00]} a5 {[%emt 0:02:22]} 9. b5 {[%emt 0:00:04]} Nh6 {[%emt 0:02:08]} 10. Bd3 {[%emt 0:09:13]} f6 {[%emt 0:00:00]} 11. O-O {[%emt 0:02:36]} Nf7 {[%emt 0:02:13]} 12. c4 {[%emt 0:12:08]} fxe5 {[%emt 0:07:41]} 13. Bc2 {[%emt 0:01:22]} e4 {[%emt 0:05:41]} 14. cxd5 {[%emt 0:04:03]} exd5 {[%emt 0:00:40]} 15. Nd4 {[%emt 0:02:12]} Nf6 {[%emt 0:03:11]} 16. f3 {[%emt 0:03:19]} exf3 {[%emt 0:06:03]} 17. Qxf3 {[%emt 0:01:20]} Nd6 {[%emt 0:08:03]} 18. Nd2 {[%emt 0:06:42]} O-O {[%emt 0:08:23]} 19. Qg3 {[%emt 0:07:31]} Nde4 {[%emt 0:18:52]} 20. Nxe4 {[%emt 0:01:29]} dxe4 {[%emt 0:02:13]} 21. Kh1 {[%emt 0:16:36]} Bd6 {[%emt 0:03:18]} 22. Qh4 {[%emt 0:08:03]} Qe7 {[%emt 0:02:30]} 23. Rae1 {[%emt 0:02:08]} Bd7 {[%emt 0:00:27]} 24. Nf3 {[%emt 0:11:13]} Bxb5 {[%emt 0:04:46]} 25. Ng5 {[%emt 0:00:00]} Bxf1 {[%emt 0:07:35]} 26. Rxe4 {[%emt 0:00:00]} Qc7 {[%emt 0:01:24]} 27. Rc4 {[%emt 0:06:05]} Qxc4 {[%emt 0:01:34]} 28. Bxh7+ {[%emt 0:00:00]} Kh8 {[%emt 0:00:00]} 29. Be4+ {[%emt 0:00:00]} Kg8 {[%emt 0:00:00]} 30. Bh7+ {[%emt 0:02:34]} Kh8 {[%emt 0:00:00]} 31. Be4+ {[%emt 0:00:01]} Kg8 {[%emt 0:00:00]} 32. Bh7+ {[%emt 0:00:24]} 1/2-1/2

[Event "4NCL 2019-20"]
[Site "Daventry"]
[Date "2020.02.09"]
[Round "6"]
[White "Suarez Real, Alberto"]
[Black "McPhillips, Joseph"]
[Result "1-0"]
[ECO "C06"]
[WhiteElo "2449"]
[BlackElo "2434"]
[Annotator "ChessBase"]
[PlyCount "59"]
[EventDate "2020.01.11"]
[EventCountry "ENG"]
[SourceTitle "playchess.com"]
[Source "ChessBase"]
[SourceQuality "1"]
[TimeControl "40/6000:3000+30"]

1. e4 {[%emt 0:00:00]} e6 {[%emt 0:01:15]} 2. d4 {[%emt 0:00:00]} d5 {[%emt 0:00:00]} 3. Nd2 {[%emt 0:00:00]} Nf6 {[%emt 0:00:00]} 4. Bd3 {[%emt 0:00:00]} c5 {[%emt 0:00:00]} 5. e5 {[%emt 0:00:00]} Nfd7 {[%emt 0:00:00]} 6. c3 {[%emt 0:00:00]} Nc6 {[%emt 0:00:00]} 7. Ngf3 {[%emt 0:00:00]} h5 {[%emt 0:00:00]} 8. Be2 {[%emt 0:02:21]} Be7 {[%emt 0:02:59]} 9. h4 {[%emt 0:17:56]} Qc7 {[%emt 0:19:10]} 10. O-O {[%emt 0:07:33]} Nf8 {[%emt 0:11:51]} 11. Re1 {[%emt 0:27:31]} Bd7 {[%emt 0:01:11]} 12. c4 {[%emt 0:10:06]} cxd4 {[%emt 0:05:24]} 13. cxd5 {[%emt 0:00:57]} exd5 {[%emt 0:01:09]} 14. Nb3 {[%emt 0:00:17]} Ne6 {[%emt 0:02:44]} 15. Nbxd4 {[%emt 0:04:42]} Ncxd4 {[%emt 0:08:35]} 16. Nxd4 {[%emt 0:00:00]} Qxe5 {[%emt 0:00:00]} 17. Nxe6 {[%emt 0:02:59]} fxe6 {[%emt 0:00:00]} 18. Bg5 {[%emt 0:11:31]} g6 {[%emt 0:11:35]} 19. Bf3 {[%emt 0:03:03]} Qg7 {[%emt 0:04:29]} 20. Bxd5 {[%emt 0:03:59]} Bxg5 {[%emt 0:12:57]} 21. hxg5 {[%emt 0:00:00]} O-O-O {[%emt 0:00:00]} 22. Be4 {[%emt 0:01:28]} Kb8 {[%emt 0:00:00]} 23. Qd6+ {[%emt 0:00:53]} Ka8 {[%emt 0:00:00]} 24. Qc7 {[%emt 0:01:02]} Rb8 {[%emt 0:00:00]} 25. Rad1 {[%emt 0:00:20]} Rh7 {[%emt 0:00:00]} 26. Rd6 {[%emt 0:01:13]} Qe7 {[%emt 0:05:03]} 27. Red1 {[%emt 0:00:16]} Be8 {[%emt 0:00:24]} 28. Qa5 {[%emt 0:00:21]} Rc8 {[%emt 0:02:45]} 29. Ra6 {[%emt 0:00:46]} Qc5 {[%emt 0:00:00]} 30. Qxc5 {[%emt 0:00:00]} 1-0

[Event "4NCL 2019-20"]
[Site "Daventry"]
[Date "2020.02.09"]
[Round "6"]
[White "Sarakauskas, Gediminas"]
[Black "Navarro Cia, Miguel"]
[Result "1-0"]
[ECO "B03"]
[WhiteElo "2433"]
[BlackElo "2256"]
[Annotator "ChessBase"]
[PlyCount "77"]
[EventDate "2020.01.11"]
[EventCountry "ENG"]
[SourceTitle "playchess.com"]
[Source "ChessBase"]
[SourceQuality "1"]
[TimeControl "40/6000:3000+30"]

1. e4 {[%emt 0:00:00]} Nf6 {[%emt 0:00:00]} 2. e5 {[%emt 0:00:00]} Nd5 {[%emt 0:00:00]} 3. d4 {[%emt 0:00:00]} d6 {[%emt 0:00:00]} 4. c4 {[%emt 0:00:00]} Nb6 {[%emt 0:00:00]} 5. exd6 {[%emt 0:00:00]} cxd6 {[%emt 0:00:00]} 6. Nc3 {[%emt 0:00:00]} g6 {[%emt 0:00:00]} 7. Be3 {[%emt 0:00:00]} Bg7 {[%emt 0:00:00]} 8. Rc1 {[%emt 0:00:00]} O-O {[%emt 0:00:00]} 9. b3 {[%emt 0:00:00]} Bf5 {[%emt 0:00:00]} 10. Be2 {[%emt 0:00:00]} d5 {[%emt 0:00:00]} 11. c5 {[%emt 0:00:00]} Nc8 {[%emt 0:00:00]} 12. Bf3 {[%emt 0:00:00]} e5 {[%emt 0:29:54]} 13. Bxd5 {[%emt 0:06:01]} exd4 {[%emt 0:00:00]} 14. Bxb7 {[%emt 0:06:31]} dxe3 {[%emt 0:00:00]} 15. Qxd8 {[%emt 0:00:10]} Rxd8 {[%emt 0:00:00]} 16. Bxa8 {[%emt 0:07:13]} Na6 {[%emt 0:00:00]} 17. Nge2 {[%emt 0:01:34]} Ne7 {[%emt 0:17:09]} 18. Be4 {[%emt 0:04:38]} Nxc5 {[%emt 0:00:00]} 19. Bxf5 {[%emt 0:00:54]} Nxf5 {[%emt 0:00:00]} 20. O-O {[%emt 0:00:46]} exf2+ {[%emt 0:00:00]} 21. Rxf2 {[%emt 0:00:34]} Nd3 {[%emt 0:10:03]} 22. Rd1 {[%emt 0:00:27]} Bd4 23. Nxd4 {[%emt 0:00:00]} Nxf2 {[%emt 0:01:19]} 24. Kxf2 {[%emt 0:00:00]} Rxd4 {[%emt 0:00:00]} 25. Rxd4 {[%emt 0:00:00]} Nxd4 {[%emt 0:00:00]} 26. Ke3 {[%emt 0:00:41]} Nc2+ {[%emt 0:02:26]} 27. Kd2 {[%emt 0:01:34]} Nb4 {[%emt 0:00:00]} 28. a3 {[%emt 0:05:40]} Nc6 {[%emt 0:00:00]} 29. Kd3 {[%emt 0:00:00]} Kf8 {[%emt 0:01:37]} 30. Nd5 {[%emt 0:02:51]} h5 {[%emt 0:00:18]} 31. b4 {[%emt 0:00:00]} Ke8 {[%emt 0:00:32]} 32. b5 {[%emt 0:00:00]} Nd8 {[%emt 0:00:46]} 33. Kd4 {[%emt 0:02:34]} Kd7 {[%emt 0:20:20]} 34. Ke5 {[%emt 0:00:00]} Ne6 {[%emt 0:00:00]} 35. Kf6 {[%emt 0:15:07]} Kd6 {[%emt 0:00:00]} 36. b6 {[%emt 0:01:18]} Kxd5 {[%emt 0:01:06]} 37. bxa7 {[%emt 0:00:00]} Nc7 {[%emt 0:00:00]} 38. Kxf7 {[%emt 0:00:00]} g5 {[%emt 0:00:00]} 39. Kg6 {[%emt 0:00:00]} 1-0